bitfinex/quotes_SOLUSD_20241111
["timestamp","ask_amount","ask_price","bid_price","bid_amount"]
[1731306821638,11.2478,208.18,208.03,0.1]
[1731306821639,43.28966402,208.1,208.03,0.1]
[1731306821959,43.28966402,208.09,208.03,0.1]
[1731306822160,43.28966402,208.06,208.03,0.1]
[1731306822353,43.28966402,208.08,208.03,0.1]
[1731306822553,43.28966402,208.09,208.03,0.1]
[1731306822758,43.28966402,208.09,208.03,4.9068]
[1731306824347,43.28966402,208.09,208.03,4.8068]
[1731306824755,43.28966402,208.09,208.03,4.9068]
[1731306825149,43.28966402,208.08,208.03,16.9242]
[1731306825352,43.28966402,208.09,208.03,16.9242]
[1731306826469,43.28966402,208.07,208.03,16.9242]
[1731306827166,43.28966402,208.08,208.03,16.9242]
[1731306827581,43.28966402,208.06,208.03,12.0174]
[1731306827759,43.28966402,208.04,207.99,0.1]
[1731306827961,43.28966402,208.01,207.99,0.1]
[1731306828164,43.28966402,208.02,207.98,4.8081]
[1731306828348,43.28966402,208.0,207.97,12.0205]
[1731306828868,43.28966402,208.05,208.0,0.1]
[1731306829248,43.28966402,208.05,207.98,43.38966402]
[1731306829858,43.28966402,208.05,207.99,48.09756402]
[1731306830079,43.28966402,208.04,207.99,4.8079]
[1731306830280,43.28966402,208.03,207.98,0.1]
[1731306830455,43.28966402,208.02,207.97,16.8288]
[1731306830650,4.8056,208.09,207.97,16.8288]
[1731306830651,43.28966402,208.03,207.97,16.8288]
[1731306830851,26.60437215,208.04,207.98,0.1]
[1731306831052,26.60437215,208.03,207.97,16.8288]
[1731306831252,26.60437215,208.04,207.98,4.908]
[1731306831879,26.60437215,208.03,207.98,4.908]
[1731306832080,26.60437215,208.02,207.98,4.808]
[1731306832549,26.60437215,208.03,207.98,4.808]
[1731306832754,26.60437215,208.02,207.98,4.808]
[1731306833177,26.60437215,208.03,207.98,4.808]
[1731306833367,26.60437215,208.02,207.96,0.1]
[1731306833573,26.60437215,208.01,207.96,4.9085]
[1731306834271,26.60437215,208.01,207.96,16.93]
[1731306834674,26.60437215,208.1,207.98,0.1]
[1731306834675,26.60437215,208.03,207.98,0.1]
[1731306834974,12.0098,208.17,207.96,43.43437215]
[1731306834975,26.60437215,208.06,208.0,0.1]
[1731306835173,26.60437215,208.07,208.0,26.70437215]
[1731306835371,26.60437215,208.1,208.04,26.70437215]
[1731306835576,16.9172,208.12,207.96,12.1215]
[1731306835774,16.9172,208.12,207.96,12.0215]
[1731306835775,26.60437215,208.0,207.96,12.0215]
[1731306836266,26.60437215,208.0,207.94,4.9089]
[1731306836865,26.60437215,208.01,207.94,43.53587215]
[1731306837185,26.60437215,207.99,207.94,0.1]
[1731306837356,26.60437215,208.01,207.94,26.70437215]
[1731306837685,3.52160411,208.0,207.95,26.60437215]
[1731306837861,26.60437215,208.01,207.95,26.60437215]
[1731306838055,3.52158559,208.0,207.95,26.60437215]
[1731306838364,5.67919001,207.97,207.92,31.51367215]
[1731306838562,11.6362188,207.96,207.92,31.51367215]
[1731306838776,11.6362188,207.95,207.92,4.9093]
[1731306838989,11.6362188,207.94,207.9,26.70437215]
[1731306839158,212.72057215,208.2,207.83,0.1]
[1731306839159,9.23400637,207.93,207.88,26.70437215]
[1731306839362,9.23400637,207.92,207.88,26.70437215]
[1731306839658,3.52158559,207.91,207.88,31.51467215]
[1731306839865,3.52158559,207.9,207.88,31.51467215]
[1731306840073,3.52158559,207.89,207.88,31.51467215]
[1731306840861,26.60437215,207.93,207.88,0.1]
[1731306841078,3.57209381,207.89,207.84,43.54367215]
[1731306841285,26.60437215,207.91,207.86,0.1]
[1731306841581,9.28788674,207.9,207.85,26.60437215]
[1731306841783,9.28788674,207.89,207.85,26.60437215]
[1731306841972,9.28788674,207.88,207.84,43.54367215]
[1731306842176,9.28788674,207.87,207.84,43.54367215]
[1731306842480,3.57226648,207.86,207.85,26.60437215]
[1731306842656,3.57226648,207.86,207.84,16.9393]
[1731306842657,3.57226648,207.86,207.84,43.54367215]
[1731306842973,35.89092883,207.85,207.81,0.1]
[1731306843280,9.29465488,207.84,207.81,0.1]
[1731306843486,3.57226648,207.83,207.81,0.1]
[1731306843660,3.57226648,207.82,207.81,0.1]
[1731306843861,9.29465916,207.82,207.81,0.1]
[1731306844062,9.29465916,207.82,207.79,16.8435]
[1731306844063,9.29465916,207.82,207.79,12.031]
[1731306844386,29.00803503,207.85,207.77,0.1]
[1731306844387,26.60437215,207.81,207.77,0.1]
[1731306844576,11.70985853,207.81,207.8,0.1]
[1731306844768,5.71958092,207.81,207.8,0.2]
[1731306845167,26.60437215,207.93,207.86,0.1]
[1731306845493,38.29940372,207.92,207.87,0.25935804]
[1731306845665,26.60437215,207.89,207.87,0.25935804]
[1731306845981,11.69512175,207.88,207.87,0.25935804]
[1731306846188,9.29176857,207.88,207.87,0.25935804]
[1731306846666,38.29950576,207.88,207.87,0.25935804]
[1731306847461,26.60437215,207.88,207.87,0.25935804]
[1731306847666,26.60437215,207.91,207.87,5.06995804]
[1731306847863,32.31795302,207.88,207.87,0.25935804]
[1731306848187,38.29232864,207.88,207.87,0.25935804]
[1731306848363,11.68795649,207.88,207.87,0.25935804]
[1731306848568,26.60437215,207.9,207.87,0.25935804]
[1731306848983,26.60437215,207.92,207.87,17.19665804]
[1731306849367,26.60437215,207.91,207.87,12.28605804]
[1731306849562,5.71073783,207.9,207.87,17.19665804]
[1731306849766,5.71073783,207.89,207.87,17.19665804]
[1731306849961,3.56921114,207.88,207.87,17.19665804]
[1731306850381,3.56921114,207.88,207.87,63.80103019]
[1731306850688,5.70967651,207.94,207.91,0.1]
[1731306850867,9.27819034,207.93,207.91,26.70437215]
[1731306851067,9.27819034,207.92,207.91,0.1]
[1731306851284,26.60437215,207.94,207.91,0.1]
[1731306851489,9.27809821,207.93,207.89,0.1]
[1731306851793,9.27809821,207.92,207.89,0.1]
[1731306851989,9.27809821,207.91,207.89,0.1]
[1731306852193,26.60437215,207.93,207.89,0.1]
[1731306852194,3.56849931,207.9,207.89,0.1]
[1731306852487,26.60437215,207.97,207.89,51.51457215]
[1731306852695,9.27969976,207.96,207.91,0.1]
[1731306852878,9.27969976,207.95,207.93,0.1]
[1731306853184,26.60437215,208.0,207.95,0.1]
[1731306853367,30.17315378,207.99,207.95,0.1]
[1731306853567,3.56878163,207.98,207.95,0.1]
[1731306853787,26.60437215,207.96,207.91,0.1]
[1731306853981,30.17406765,207.95,207.91,0.1]
[1731306854296,26.60437215,207.93,207.91,0.1]
[1731306854590,26.60437215,207.93,207.89,16.8357]
[1731306854591,26.60437215,207.92,207.9,4.8097]
[1731306854899,26.60437215,207.94,207.9,4.8097]
[1731306855190,26.60437215,207.96,207.9,16.8347]
[1731306855685,3.57036702,207.95,207.9,16.8347]
[1731306855898,26.60437215,207.96,207.9,16.8347]
[1731306856074,3.57068324,207.95,207.9,16.8347]
[1731306856274,26.60437215,207.96,207.9,16.8347]
[1731306856587,3.5709885,207.95,207.9,16.8347]
[1731306856768,26.60437215,207.91,207.85,12.1278]
[1731306856970,26.60437215,207.9,207.85,16.9389]
[1731306857274,26.60437215,207.92,207.87,0.1]
[1731306857473,26.60437215,207.94,207.87,26.70437215]
[1731306857670,30.17586284,207.93,207.87,0.1]
[1731306857874,3.57149069,207.92,207.87,0.1]
[1731306858087,26.60437215,207.93,207.87,0.1]
[1731306858273,26.60437215,207.91,207.87,0.1]
[1731306858480,26.60437215,207.91,207.85,12.0278]
[1731306858481,26.60437215,207.91,207.86,4.8108]
[1731306858686,26.60437215,207.9,207.87,0.1]
[1731306858990,26.60437215,207.91,207.87,0.1]
[1731306859376,26.60437215,207.92,207.87,0.1]
[1731306859573,26.60437215,207.91,207.87,0.1]
[1731306859779,26.60437215,207.88,207.86,12.0273]
[1731306859971,26.60437215,207.89,207.86,12.0273]
[1731306860190,26.60437215,207.9,207.86,12.0273]
[1731306861085,26.60437215,207.89,207.86,12.0273]
[1731306861885,0.12549,207.98,207.87,0.1]
[1731306861886,26.60437215,207.91,207.87,0.1]
[1731306862091,26.60437215,207.92,207.87,0.1]
[1731306862482,26.60437215,207.91,207.87,0.1]
[1731306862875,26.60437215,207.89,207.86,12.0273]
[1731306863077,26.60437215,207.89,207.87,4.8106]
[1731306863381,26.60437215,207.88,207.86,12.0273]
[1731306863586,26.60437215,207.88,207.81,12.1296]
[1731306863781,26.60437215,207.85,207.83,0.1]
[1731306864295,26.60437215,207.85,207.75,2.69091199]
[1731306864296,26.60437215,207.85,207.81,0.1]
[1731306864499,26.60437215,207.84,207.81,4.9119]
[1731306865079,26.60437215,207.84,207.81,12.1302]
[1731306865486,26.60437215,207.83,207.81,12.0302]
[1731306865694,26.60437215,207.82,207.81,12.0302]
[1731306865903,26.60437215,207.82,207.78,4.8127]
[1731306866197,26.60437215,207.8,207.78,4.8127]
[1731306866402,26.60437215,207.8,207.77,16.8455]
[1731306866581,26.60437215,207.79,207.77,16.8455]
[1731306866978,26.60437215,207.8,207.77,12.0325]
[1731306867179,26.60437215,207.81,207.77,12.0325]
[1731306867585,4.8113,207.85,207.77,12.0325]
[1731306867586,26.60437215,207.8,207.77,12.0325]
[1731306868102,26.60437215,207.81,207.77,12.1325]
[1731306868802,26.60437215,207.81,207.77,16.9455]
[1731306869292,6.2568,207.86,207.82,0.1]
[1731306869675,26.60437215,207.84,207.8,0.1]
[1731306869880,26.60437215,207.83,207.8,0.1]
[1731306870097,26.60437215,207.83,207.78,0.1]
[1731306870303,26.60437215,207.84,207.8,0.1]
[1731306870882,26.60437215,207.85,207.81,4.812]
[1731306871101,3.57058081,207.84,207.81,4.812]
[1731306871399,6.2568,207.86,207.82,0.1]
[1731306871608,16.4583,207.9,207.86,0.1]
[1731306871609,43.06267215,207.9,207.86,0.1]
[1731306871782,30.17496607,207.89,207.86,0.1]
[1731306872107,3.57059392,207.88,207.86,0.1]
[1731306872283,26.60437215,207.91,207.86,0.1]
[1731306872478,30.17610686,207.9,207.86,0.1]
[1731306872696,26.60437215,207.88,207.86,0.1]
[1731306873004,26.60437215,207.89,207.86,4.9107]
[1731306873794,26.60437215,207.9,207.86,4.9107]
[1731306874005,26.60437215,207.88,207.86,0.1]
[1731306874197,26.60437215,207.88,207.86,4.9108]
[1731306874407,26.60437215,207.89,207.86,4.9108]
[1731306874602,26.60437215,207.88,207.86,4.9108]
[1731306874899,30.17817026,207.87,207.82,4.9117]
[1731306875091,26.60437215,207.87,207.84,0.1]
[1731306875286,26.60437215,207.86,207.82,4.9117]
[1731306875504,26.60437215,207.85,207.82,4.9117]
[1731306875698,26.60437215,207.86,207.82,4.9117]
[1731306876284,26.60437215,207.86,207.82,12.1296]
[1731306876589,26.10437215,207.85,207.82,12.1296]
[1731306876788,26.60437215,207.86,207.82,12.1296]
[1731306876991,26.60437215,207.87,207.82,12.1296]
[1731306877193,3.57584521,207.86,207.82,12.1296]
[1731306877400,26.60437215,207.86,207.82,12.1296]
[1731306878217,30.1823091,207.85,207.82,12.1296]
[1731306878501,26.60437215,207.85,207.82,16.9414]
[1731306878721,26.60437215,207.86,207.82,16.9414]
[1731306878882,3.57799833,207.85,207.82,16.9414]
[1731306879087,26.60437215,207.86,207.82,16.9414]
[1731306879301,30.1832311,207.85,207.78,0.1]
[1731306879485,26.70437215,207.9,207.8,0.1]
[1731306879486,26.60437215,207.83,207.8,0.1]
[1731306880132,26.60437215,207.85,207.8,0.1]
[1731306880894,26.60437215,207.85,207.83,0.1]
[1731306881612,10.77834179,207.94,207.85,0.1]
[1731306881801,26.60437215,207.9,207.85,0.1]
[1731306882004,3.58113792,207.89,207.85,0.1]
[1731306882197,30.18551007,207.88,207.85,0.1]
[1731306882393,5.96924179,207.96,207.85,0.1]
[1731306882394,3.58113792,207.87,207.85,0.1]
[1731306882716,26.60437215,207.9,207.85,0.1]
[1731306882898,26.60437215,207.88,207.84,4.8113]
[1731306883107,3.58214881,207.87,207.84,4.8113]
[1731306883414,26.60437215,207.88,207.84,4.8113]
[1731306883586,3.58397113,207.87,207.84,16.8397]
[1731306883791,26.60437215,207.88,207.85,0.1]
[1731306884311,26.60437215,207.89,207.85,0.1]
[1731306884508,30.1889649,207.88,207.85,0.1]
[1731306884813,3.58459275,207.87,207.85,0.1]
[1731306885005,26.60437215,207.88,207.85,4.911]
[1731306885316,30.18922765,207.87,207.84,16.8397]
[1731306885611,26.60437215,207.85,207.84,12.0284]
[1731306885795,3.5848555,207.85,207.84,12.0284]
[1731306885996,26.60437215,207.88,207.84,12.0284]
[1731306886199,30.18950465,207.87,207.84,12.0284]
[1731306886408,3.5851325,207.86,207.84,12.0284]
[1731306886613,26.60437215,207.87,207.84,12.0284]
[1731306886796,3.58521948,207.86,207.84,16.8397]
[1731306887000,26.60437215,207.87,207.84,16.8397]
[1731306887213,3.58529921,207.86,207.84,16.8397]
[1731306887415,3.58529921,207.85,207.84,16.8397]
[1731306888220,30.18967136,207.85,207.82,4.8116]
[1731306888517,3.58529921,207.84,207.82,4.8116]
[1731306888809,26.60437215,207.85,207.82,4.8116]
[1731306889012,16.65486276,207.86,207.82,16.8412]
[1731306889217,3.58548892,207.85,207.82,16.8412]
[1731306889418,16.65486276,207.85,207.82,16.8412]
[1731306889607,3.58598241,207.84,207.82,16.8412]
[1731306889808,16.65486276,207.85,207.82,16.8412]
[1731306890125,3.58605623,207.84,207.82,16.8412]
[1731306890422,16.65486276,207.86,207.82,16.8412]
[1731306890626,20.24081388,207.85,207.82,16.8412]
[1731306890801,3.58595112,207.84,207.82,16.8412]
[1731306890998,16.65486276,207.85,207.82,16.8412]
[1731306891194,3.58600578,207.84,207.82,16.8412]
[1731306891394,16.65486276,207.85,207.82,16.8412]
[1731306891597,3.58590789,207.84,207.82,16.8412]
[1731306891811,16.65486276,207.85,207.82,16.8412]
[1731306892023,3.58590694,207.84,207.82,16.8412]
[1731306892217,16.65486276,207.85,207.82,16.8412]
[1731306892403,20.24091407,207.84,207.82,16.8412]
[1731306892716,21.46486276,207.9,207.79,0.1]
[1731306892717,20.24095794,207.83,207.79,0.1]
[1731306892901,16.65486276,207.8,207.79,0.1]
[1731306893918,16.65486276,207.81,207.79,4.9124]
[1731306894720,20.24088192,207.8,207.74,4.9135]
[1731306894902,16.65486276,207.76,207.74,4.9135]
[1731306895605,16.65486276,207.75,207.73,12.0346]
[1731306895916,16.65486276,207.76,207.73,16.8485]
[1731306896120,3.58564528,207.75,207.73,16.8485]
[1731306896301,16.65486276,207.76,207.73,16.8485]
[1731306896823,16.65486276,207.77,207.73,16.8485]
[1731306897119,16.65486276,207.76,207.73,16.8485]
[1731306898427,3.584971,207.75,207.73,16.8485]
[1731306898718,16.65486276,207.76,207.73,16.8485]
[1731306898924,6.4096,207.83,207.73,16.8485]
[1731306898925,20.23997705,207.75,207.73,16.8485]
[1731306899107,16.65486276,207.75,207.73,16.8485]
[1731306901607,20.2396779,207.74,207.68,0.1]
[1731306901932,20.2396779,207.74,207.67,12.0379]
[1731306901933,16.65486276,207.69,207.67,12.0379]
[1731306902113,16.65486276,207.68,207.67,12.0379]
[1731306902317,16.65486276,207.69,207.67,12.0379]
[1731306902710,16.65486276,207.68,207.64,0.1]
[1731306902916,16.65486276,207.65,207.64,0.1]
[1731306903319,16.65486276,207.65,207.63,4.8161]
[1731306903729,16.65486276,207.64,207.61,0.1]
[1731306904035,16.65486276,207.62,207.57,16.9611]
[1731306904214,4.8149,207.69,207.57,16.9611]
[1731306904215,16.65486276,207.59,207.57,16.9611]
[1731306904413,16.65486276,207.61,207.57,16.9611]
[1731306904607,16.65486276,207.6,207.57,16.9611]
[1731306904838,16.65486276,207.59,207.57,12.0436]
[1731306905135,16.65486276,207.58,207.55,4.8179]
[1731306905340,16.65486276,207.57,207.55,4.8179]
[1731306905716,16.65486276,207.58,207.55,4.9179]
[1731306906112,16.65486276,207.6,207.57,0.1]
[1731306906530,16.65486276,207.59,207.57,0.1]
[1731306906729,16.65486276,207.58,207.55,4.8179]
[1731306906913,16.65486276,207.57,207.55,4.8179]
[1731306907115,16.65486276,207.56,207.54,12.0458]
[1731306907426,16.65486276,207.55,207.52,4.8187]
[1731306907725,16.65486276,207.54,207.52,4.8187]
[1731306907925,16.65486276,207.53,207.5,4.9191]
[1731306908124,16.65486276,207.55,207.5,16.9672]
[1731306908522,16.65486276,207.55,207.52,0.1]
[1731306908741,16.65486276,207.56,207.52,0.1]
[1731306908940,16.65486276,207.59,207.54,0.1]
[1731306909642,16.65486276,207.58,207.54,4.9183]
[1731306909842,23.18746276,207.61,207.54,33.61896276]
[1731306910022,16.65486276,207.65,207.58,16.75486276]
[1731306910336,23.15946276,207.67,207.61,0.1]
[1731306910551,15.5295,207.72,207.65,0.1]
[1731306910721,16.65486276,207.69,207.65,0.1]
[1731306911041,16.65486276,207.7,207.65,0.1]
[1731306911221,16.65486276,207.69,207.65,0.1]
[1731306911423,16.65486276,207.67,207.65,0.1]
[1731306911828,16.65486276,207.66,207.65,0.1]
[1731306912030,16.65486276,207.66,207.6,4.9168]
[1731306912240,16.65486276,207.66,207.63,0.1]
[1731306912448,16.65486276,207.67,207.63,0.1]
[1731306912827,26.69344937,207.65,207.61,0.1]
[1731306913141,26.69344937,207.64,207.61,0.1]
[1731306913330,26.69344937,207.7,207.63,0.1]
[1731306913331,26.69344937,207.65,207.63,0.1]
[1731306913533,26.69344937,207.65,207.62,4.9164]
[1731306913721,26.69344937,207.7,207.62,0.1]
[1731306913722,26.69344937,207.64,207.62,0.1]
[1731306913918,26.69344937,207.63,207.6,16.859]
[1731306914122,26.69344937,207.61,207.6,12.1423]
[1731306914334,26.69344937,207.61,207.6,12.0423]
[1731306914544,26.69344937,207.61,207.58,0.1]
[1731306914750,26.69344937,207.6,207.58,0.1]
[1731306915047,26.69344937,207.59,207.56,4.9178]
[1731306915226,26.69344937,207.57,207.55,12.0449]
[1731306915428,26.69344937,207.56,207.55,12.0449]
[1731306915627,26.69344937,207.57,207.55,12.0449]
[1731306915841,26.69344937,207.58,207.55,16.863]
[1731306917045,26.69344937,207.56,207.54,0.1]
[1731306917357,26.69344937,207.55,207.5,12.1478]
[1731306917521,26.69344937,207.52,207.5,12.1478]
[1731306917728,26.69344937,207.51,207.5,12.1478]
[1731306918148,26.69344937,207.51,207.48,0.1]
[1731306918644,26.69344937,207.52,207.5,0.1]
[1731306918826,26.69344937,207.58,207.52,0.1]
[1731306919322,26.69344937,207.57,207.52,0.1]
[1731306919526,26.69344937,207.57,207.53,4.8185]
[1731306921040,26.69344937,207.62,207.56,0.1]
[1731306921433,26.69344937,207.64,207.6,0.1]
[1731306921640,26.69344937,207.61,207.56,0.1]
[1731306921845,22.5323,207.65,207.53,16.8649]
[1731306921846,27.3482,207.65,207.54,0.1]
[1731306922029,0.1,207.62,207.54,0.1]
[1731306922428,0.12549,207.64,207.53,16.8649]
[1731306922646,0.1,207.61,207.53,16.8649]
[1731306922841,26.69344937,207.56,207.53,16.8649]
[1731306923530,26.69344937,207.56,207.53,16.9649]
[1731306923847,26.69344937,207.54,207.51,0.1]
[1731306924045,26.69344937,207.54,207.51,4.9189]
[1731306924348,26.69344937,207.56,207.51,16.9665]
[1731306924750,26.69344937,207.57,207.51,16.9665]
[1731306925061,22.5323,207.65,207.51,16.9665]
[1731306925062,26.69344937,207.59,207.56,0.1]
[1731306925433,4.816,207.64,207.54,0.1]
[1731306925434,26.69344937,207.57,207.54,0.1]
[1731306925630,26.69344937,207.57,207.54,16.964]
[1731306925831,26.69344937,207.55,207.54,12.1458]
[1731306926033,26.69344937,207.55,207.5,0.1]
[1731306926351,26.69344937,207.54,207.5,0.1]
[1731306926649,26.69344937,207.53,207.5,4.9191]
[1731306927152,26.69344937,207.6,207.48,16.9688]
[1731306927153,26.69344937,207.51,207.48,16.9688]
[1731306927348,26.69344937,207.5,207.48,16.9688]
[1731306927743,26.69344937,207.5,207.48,12.1492]
[1731306927951,26.69344937,207.49,207.48,0.1]
[1731306929148,26.69344937,207.49,207.46,9.18985823]
[1731306929149,26.69344937,207.49,207.46,4.46985823]
[1731306929353,26.69344937,207.47,207.46,4.46985823]
[1731306929940,26.69344937,207.47,207.46,4.36985823]
[1731306932705,26.69344937,207.48,207.46,4.36985823]
[1731306932835,26.69344937,207.51,207.47,4.9199]
[1731306933156,26.69344937,207.51,207.47,16.9698]
[1731306933850,26.69344937,207.53,207.49,0.1]
[1731306934050,26.69344937,207.52,207.49,0.1]
[1731306934357,26.69344937,207.5,207.46,4.36985823]
[1731306934658,0.1,207.55,207.46,4.36985823]
[1731306934659,26.69344937,207.49,207.46,4.36985823]
[1731306934956,26.69344937,207.47,207.46,4.36985823]
[1731306936651,30.2509985,207.47,207.46,4.36985823]
[1731306937063,30.2509985,207.47,207.33,0.1]
[1731306937064,23.902374,207.46,207.33,0.1]
[1731306937261,26.69344937,207.34,207.33,0.1]
[1731306937571,26.69344937,207.34,207.3,2.7258]
[1731306937755,26.69344937,207.33,207.31,0.1]
[1731306938068,26.69344937,207.34,207.31,0.1]
[1731306938267,26.69344937,207.32,207.31,0.1]
[1731306938648,26.69344937,207.33,207.31,0.1]
[1731306939066,26.69344937,207.33,207.31,4.9235]
[1731306939362,26.69344937,207.32,207.3,14.7856]
[1731306939546,26.69344937,207.32,207.31,0.1]
[1731306939742,26.69344937,207.32,207.3,19.6095]
[1731306939948,26.69344937,207.32,207.31,0.1]
[1731306940369,26.69344937,207.34,207.31,0.1]
[1731306940757,26.69344937,207.33,207.32,1.30491297]
[1731306941074,26.69344937,207.35,207.31,4.9235]
[1731306941256,26.69344937,207.36,207.32,0.15686024]
[1731306941461,30.24859042,207.35,207.31,4.9235]
[1731306941651,26.69344937,207.36,207.33,0.1]
[1731306941971,26.69344937,207.38,207.35,0.1]
[1731306942155,26.69344937,207.38,207.32,20.0]
[1731306942156,26.69344937,207.43,207.39,0.1]
[1731306942552,26.69344937,207.41,207.4,0.10745939]
[1731306942975,30.24650046,207.41,207.4,0.10745939]
[1731306943274,30.24766491,207.41,207.4,0.10745939]
[1731306943472,26.69344937,207.43,207.4,0.20745939]
[1731306943767,26.69344937,207.43,207.41,0.10452099]
[1731306944350,26.69344937,207.44,207.4,16.9754]
[1731306944567,3.555594,207.43,207.4,16.9754]
[1731306944757,26.69344937,207.43,207.4,12.154]
[1731306945057,30.24918515,207.42,207.4,12.054]
[1731306945247,26.69344937,207.42,207.4,12.054]
[1731306945446,26.69344937,207.41,207.38,4.9219]
[1731306945667,26.69344937,207.39,207.34,0.1]
[1731306945876,26.69344937,207.35,207.34,0.1]
[1731306946259,26.69344937,207.37,207.34,0.1]
[1731306946455,26.69344937,207.39,207.34,0.1]
[1731306946765,26.69344937,207.39,207.37,0.1]
[1731306947277,26.69344937,207.41,207.37,12.1557]
[1731306947455,26.69344937,207.41,207.39,0.1]
[1731306947876,26.69344937,207.41,207.4,0.07993574]
[1731306948254,26.69344937,207.41,207.39,0.1]
[1731306948958,26.69344937,207.4,207.37,16.9778]
[1731306949573,26.69344937,207.39,207.37,16.9778]
[1731306949876,26.69344937,207.38,207.35,0.1]
[1731306950074,0.1,207.43,207.35,0.1]
[1731306950075,26.69344937,207.36,207.35,0.1]
[1731306950461,26.69344937,207.36,207.33,0.1]
[1731306950662,26.69344937,207.35,207.33,0.1]
[1731306951171,26.69344937,207.35,207.32,12.0583]
[1731306951471,26.69344937,207.34,207.32,12.0583]
[1731306952053,26.69344937,207.35,207.33,0.1]
[1731306952868,26.69344937,207.36,207.33,0.1]
[1731306953068,26.69344937,207.39,207.35,0.1]
[1731306953257,26.69344937,207.4,207.37,0.1]
[1731306953454,26.69344937,207.38,207.35,0.1]
[1731306953678,26.69344937,207.36,207.35,0.1]
[1731306954677,26.69344937,207.36,207.33,0.1]
[1731306954875,26.69344937,207.35,207.33,0.1]
[1731306955091,26.69344937,207.35,207.34,0.0259244]
[1731306955582,26.69344937,207.36,207.33,0.1]
[1731306956097,26.69344937,207.4,207.37,0.1]
[1731306957179,26.69344937,207.4,207.38,0.02186499]
[1731306957375,26.69344937,207.39,207.37,0.1]
[1731306957697,4.8207,207.44,207.35,0.1]
[1731306957698,26.69344937,207.38,207.35,0.1]
[1731306957975,26.69344937,207.36,207.31,4.9236]
[1731306958179,26.69344937,207.33,207.31,4.9236]
[1731306958380,26.69344937,207.34,207.33,0.1]
[1731306958677,26.69344937,207.34,207.31,4.9236]
[1731306959073,26.69344937,207.35,207.31,4.9236]
[1731306959461,26.69344937,207.35,207.33,0.1]
[1731306959664,26.69344937,207.37,207.35,0.1]
[1731306959863,26.69344937,207.37,207.33,0.1]
[1731306960093,26.69344937,207.38,207.35,0.1]
[1731306960577,26.69344937,207.39,207.36,0.1]
[1731306960784,26.69344937,207.38,207.36,0.1]
[1731306961080,4.8207,207.44,207.36,4.9224]
[1731306961081,26.69344937,207.4,207.36,4.9224]
[1731306961292,26.69344937,207.39,207.36,4.9224]
[1731306961463,26.69344937,207.38,207.34,0.1]
[1731306961787,4.821,207.43,207.34,0.1]
[1731306961788,26.69344937,207.36,207.34,0.1]
[1731306962083,26.69344937,207.37,207.34,0.1]
[1731306962581,26.69344937,207.36,207.34,0.1]
[1731306962786,26.69344937,207.35,207.32,0.1]
[1731306962993,26.69344937,207.33,207.3,2.8258]
[1731306963279,26.69344937,207.34,207.32,0.1]
[1731306963660,26.69344937,207.33,207.3,2.8258]
[1731306963864,26.69344937,207.31,207.3,2.7258]
[1731306964860,77.16378274,207.31,207.3,2.7258]
[1731306965064,77.16378274,207.31,207.26,4.5082]
[1731306965065,0.1,207.27,207.26,4.5082]
[1731306965264,54.04011865,207.27,207.26,4.5082]
[1731306965560,50.47033337,207.27,207.26,4.5082]
[1731306965978,54.04137687,207.27,207.26,4.5082]
[1731306966186,26.69344937,207.27,207.26,4.5082]
[1731306966690,50.57033337,207.27,207.26,4.5082]
[1731306966866,54.26736571,207.27,207.26,4.5082]
[1731306967170,54.26736571,207.27,207.14,12.0688]
[1731306967171,47.186074,207.26,207.14,12.1688]
[1731306967370,26.69344937,207.15,207.14,0.1]
[1731306967569,46.960584,207.26,207.18,0.1]
[1731306967771,26.69344937,207.2,207.18,0.1]
[1731306968077,26.69344937,207.19,207.16,0.1]
[1731306968271,26.69344937,207.18,207.14,12.1691]
[1731306968474,26.69344937,207.18,207.12,4.8279]
[1731306968475,26.69344937,207.15,207.12,0.1]
[1731306968791,26.69344937,207.2,207.05,4.3767]
[1731306968792,26.69344937,207.13,207.11,0.1]
[1731306969085,26.69344937,207.14,207.11,0.1]